[Event "2nd Bieszczady Chess-ch A 2022"]
[Site "Bystre"]
[Date "2022.07.20"]
[Round "4.8"]
[White "Hnatyshyn, Anastasiia"]
[Black "Kopacz, Lukasz"]
[Result "1-0"]
[ECO "B76"]
[WhiteElo "1931"]
[BlackElo "1821"]
[Annotator "TA"]
[PlyCount "75"]
[EventDate "2022.07.17"]
[EventCountry "POL"]
[SourceTitle "playchess.com"]
[Source "ChessBase"]
[SourceQuality "1"]
[TimeControl "5400+30"]

{[%evp 24,75,35,31,91,90,99,89,103,83,88,73,133,122,156,158,152,168,152,127,454,449,433,454,438,431,472,464,451,440,545,466,579,590,583,552,1927,1810,1371,798,744,736,643,633,1454,1446,1446,552,553,519,1417,1362,29988,29989]} 1. e4 {[%emt 0:00:12]} c5 {[%emt 0:06:12]} 2. Nf3 d6 {[%emt 0:01:42]} 3. d4 {[%emt 0:00:12]} cxd4 {[%emt 0:00:03]} 4. Nxd4 Nf6 {[%emt 0:00:05]} 5. Nc3 {[%emt 0:00:12]} g6 {[%emt 0:07:58]} 6. Be3 {[%emt 0:00:11]} Bg7 {[%emt 0:00:06]} 7. f3 {[%emt 0:00:07]} O-O {[%emt 0:00:25]} 8. Qd2 {[%emt 0:00:06]} Nc6 {[%emt 0:00:05]} 9. O-O-O {[%emt 0:00:10]} d5 {[%emt 0:01:04]} 10. exd5 {[%emt 0:00:07]} Nxd5 {[%emt 0:00:04]} 11. Nxc6 {[%emt 0:00:06]} bxc6 {[%emt 0:00:07]} 12. Bd4 {[%emt 0:00:05]} Nxc3 {[%emt 0:05:50]} 13. Qxc3 {[%emt 0:00:07]} Bxd4 {[%emt 0:01:14] B76: Sicilian Dragon: Yugoslav Attack, 9 g4 and 9 0-0-0.} (13... Bh6+ $14 14. Be3 Bxe3+ 15. Qxe3 Qa5) 14. Rxd4 $16 {[%emt 0:00:06]} Qb6 {[%emt 0:00:28]} 15. h4 {[%emt 0:00:48][%cal Bh2h4,Bh4h5][%mdl 32]} c5 {[%emt 0:26:18] [#] White is better.} 16. Rc4 $146 {[%emt 0:08:12]} ({Predecessor:} 16. Re4 e6 17. h5 Bb7 18. Rg4 Rad8 19. hxg6 fxg6 20. Rxg6+ hxg6 21. Qh8+ Kf7 22. Rh7+ Ke8 23. Qe5 Rd7 24. Rh6 Qd6 25. Qxd6 Rxd6 {0-1 (25) Bieszk,S (913)-Lauer,F (1050) LSS email 2015}) 16... Be6 {[%emt 0:00:55]} 17. Re4 {[%emt 0:09:16]} Qd6 {[%emt 0:17:58]} (17... Rfd8 $142) 18. h5 {[%emt 0:10:49]} Rad8 {[%emt 0:01:55][%csl Gd8][%cal Rd6d1] [#]} 19. Bd3 {[%emt 0:02:50]} Bf5 {[%emt 0:21:42]} 20. hxg6 {[%emt 0:00:32]} Bxg6 {[%emt 0:00:48]} 21. Rg4 $40 {[%emt 0:02:47][%cal Oh1h7][%mdl 128] aiming for Rxh7! Black is in trouble. White is much more active.} f5 $2 {[%emt 0:00:34][%mdl 8192] This move loses the game for Black.} (21... e5 $16 {is tougher.} 22. a3 Qe6) 22. Bc4+ $18 {[%emt 0:01:45]} Rf7 {[%emt 0:02:34]} 23. Bxf7+ {[%emt 0:01:46]} Kxf7 {[%emt 0:00:05]} 24. Rc4 {[%emt 0:01:26]} Qg3 {[%emt 0:00:26]} 25. Re1 {[%emt 0:01:59]} Qxg2 {[%emt 0:01:46]} 26. Qe3 {[%emt 0:00:24] Inhibits Qg5.} e5 {[%emt 0:01:10]} 27. b3 {[%emt 0:02:21]} e4 {[%emt 0:00:22]} 28. fxe4 {[%emt 0:00:13]} fxe4 {[%emt 0:00:15]} 29. Rxc5 {[%emt 0:00:23]} Rd7 {[%emt 0:00:51] Against Rc7} 30. Qf4+ {[%emt 0:00:31]} Kg7 {[%emt 0:00:27]} 31. Rc7 {[%emt 0:00:32]} Rxc7 {[%emt 0:00:22]} 32. Qxc7+ {[%emt 0:00:02][%mdl 4096] Endgame KQR-KQB} Kf6 {[%emt 0:00:51]} 33. Qf4+ {[%emt 0:01:15]} Kg7 {[%emt 0:00:22]} 34. Rf1 {[%emt 0:00:18][%csl Gf1][%cal Rf4f8] [#] Against Qf3} h5 {[%emt 0:00:37]} 35. Qf8+ {[%emt 0:01:38]} (35. Qe5+ $142 Kg8 36. Rd1) 35... Kh7 {[%emt 0:00:02]} 36. Rd1 {[%emt 0:00:53] Threatening mate with Rd7+.} Qg4 {[%emt 0:01:03] Inhibits Rd7+.} (36... Qg5+ $142 37. Kb1 Qf5) 37. Rd8 {[%emt 0:01:45][%csl Gd8][%cal Rf8h8]} Qg1+ {[%emt 0:00:45]} 38. Kb2 {Weighted Error Value: White=0.27 (precise) /Black=0.91} 1-0

[Event "2nd Bieszczady Chess-ch A 2022"]
[Site "Bystre"]
[Date "2022.07.20"]
[Round "4.9"]
[White "Janzer, Hubert"]
[Black "Kucharski, Bartlomiej"]
[Result "1-0"]
[ECO "A45"]
[WhiteElo "1839"]
[BlackElo "2003"]
[Annotator "TA"]
[PlyCount "89"]
[EventDate "2022.07.17"]
[EventCountry "POL"]
[SourceTitle "playchess.com"]
[Source "ChessBase"]
[SourceQuality "1"]
[TimeControl "5400+30"]

{[%evp 9,89,-5,0,14,15,9,57,4,45,-27,-23,-22,-14,-36,-10,-18,26,0,0,-6,0,-10,0,12,14,4,0,0,0,0,37,38,104,40,57,54,121,121,206,195,532,532,529,518,526,533,525,516,694,675,1307,1307,1219,1145,2560,2479,6055,6167,12834,1069,12832,5597,12838,12838,12837,12837,29976,29976,29980,29978,29982,29979,29973,12841,12837,12837,29981,29980,29987,29988,29989,29990]} 1. d4 Nf6 2. Bf4 g6 3. Nc3 d5 4. e3 Bg7 5. h4 h5 6. Nf3 {A45: Trompowsky Attack.} a6 7. Be2 c5 (7... c6 $11) 8. Ne5 (8. dxc5 $14 Qa5 9. O-O) 8... Nc6 9. Bf3 (9. dxc5 $14 O-O 10. Nxc6 bxc6 11. Be5) 9... cxd4 $11 {[#]} 10. Nxc6 $146 ({Predecessor:} 10. exd4 Bf5 11. Qd2 Rc8 12. O-O O-O 13. Ne2 Bxc2 14. Bh6 Be4 15. Bxg7 Kxg7 16. Ng3 {0-1 (46) Jose Polanco,K (1828)-Matnadze,A (2421) Tornelo INT 2020}) 10... bxc6 11. Qxd4 O-O {[%cal Of6e4] Hoping for ...Ne4!} 12. Be5 Ne8 13. Bxg7 Nxg7 14. O-O-O Qd6 {Against Qc5} 15. Qa4 e5 16. Nxd5 cxd5 17. Bxd5 Qb8 $1 {aiming for ...Ra7.} ({Much less strong is} 17... Bd7 18. Qa5 (18. Qe4 Bf5 $14) 18... Qe7 19. Bxa8 Rxa8 20. Qc7 $16) 18. Bxa8 Qxa8 19. e4 Ne6 20. f3 $1 Nf4 {[#]} (20... Qa7 $14) 21. Rd2 ({White should play} 21. Qa5 $1 $16) 21... Qa7 $14 22. Qa5 Qe7 {White leaves nothing to chance now.} (22... Qe3 $14) 23. g3 $16 Nh3 {[#]} (23... Ne6 $16 {keeps fighting.}) 24. Rhd1 $1 $18 {Rd8 is the strong threat.} f6 $2 (24... Kh7 {is a better chance.} 25. b3 g5) 25. Rd8 {Strongly threatening Rxf8+.} Be6 26. Rxf8+ Kxf8 27. Qxa6 f5 28. a4 fxe4 29. fxe4 Nf2 30. Rf1 Qf7 31. Qd6+ Kg8 {[#]} 32. Rxf2 $1 {[%mdl 512]} Qxf2 (32... Qd7 33. Qxe5) 33. Qxe6+ {[%mdl 4096] Endgame KQ-KQ} Kh7 34. Qe7+ Kg8 35. Qd8+ Kh7 36. b3 Qe1+ 37. Kb2 {White wants to mate with a5.} Qxe4 38. a5 Qe2 39. Qd3 Qg2 40. a6 Qc6 41. a7 (41. Qc4 $142 Qd7 42. Qe4 Kh6 43. Qa8 Qd4+ 44. Ka2 Kg7 45. Qb7+ Kf6 46. a7) 41... Qb7 42. Qe3 {Qc5 would kill now.} Kg8 43. Qc5 {White mates.} Kh7 44. Qa5 Qa8 45. Qc7+ {Weighted Error Value: White=0.14 (very precise) /Black=0.71} 1-0

[Event "2nd Bieszczady Chess-ch A 2022"]
[Site "Bystre"]
[Date "2022.07.21"]
[Round "5.1"]
[White "Lewtak, Damian"]
[Black "Razin, Vadim"]
[Result "0-1"]
[ECO "A25"]
[WhiteElo "2397"]
[BlackElo "2428"]
[Annotator "TA"]
[PlyCount "84"]
[EventDate "2022.07.17"]
[EventCountry "POL"]
[SourceTitle "playchess.com"]
[Source "ChessBase"]
[SourceQuality "1"]
[TimeControl "5400+30"]

{[%evp 9,84,20,22,25,17,17,22,7,0,0,28,36,56,52,83,39,56,28,29,24,78,83,132,30,31,20,16,14,15,0,1,-4,0,-13,0,-12,-41,-149,0,-72,-86,-117,-50,-216,-212,-180,-202,-166,-198,-420,-393,-408,-408,-780,-779,-679,-566,-491,-388,-401,-401,-489,-339,-642,-425,-704,-575,-786,-666,-1137,-1075,-29984,-29985,-29990,-29977,-29993,-29985]} 1. c4 {[%emt 0:00:08]} e5 {[%emt 0:22:25]} 2. Nc3 {[%emt 0:00:14]} Nc6 {[%emt 0:00:10]} 3. g3 {[%emt 0:00:17]} Bc5 {[%emt 0:00:11]} 4. Bg2 {[%emt 0:00:29]} d6 {[%emt 0:00:04]} 5. e3 {[%emt 0:01:21]} a6 {[%emt 0:00:14]} 6. Nge2 {[%emt 0:01:47] A25: English Opening vs King's Indian with ...Nc6 but without early d3.} Ba7 {[%emt 0:00:04]} 7. d4 {[%emt 0:01:18]} h5 {[%emt 0:07:31]} 8. b3 {[%emt 0:08:53] The position is equal.} h4 {[%emt 0:03:16]} 9. Bb2 {[%emt 0:00:06] [#]} exd4 $146 {[%emt 0:02:53]} ({Predecessor:} 9... Nf6 10. Qd3 Nb4 11. Qb1 Nc6 12. Qd3 Nb4 13. Qb1 Nc6 14. dxe5 Nxe5 15. h3 Rb8 {½-½ (43) Ganguly,S (2658)-Erdos,V (2604) Douglas 2019}) 10. Nxd4 {[%emt 0:01:20]} Ne5 {[%emt 0:02:36]} 11. f4 {[%emt 0:08:44]} h3 {[%emt 0:07:09]} 12. Be4 {[%emt 0:02:11]} Ng4 {[%emt 0:00:39]} 13. Qf3 {[%emt 0:03:47]} N8f6 {[%emt 0:05:16]} 14. Bc2 {[%emt 0:13:03]} Qe7 {[%emt 0:06:46] [#]} (14... Bxd4 $11 15. exd4 O-O) 15. O-O-O $1 $16 {[%emt 0:03:34]} Bd7 {[%emt 0:19:20]} (15... Nxe3 $2 16. Rhe1 Bg4 17. Qf2 $18 (17. Rxe3 Bxf3 18. Rxe7+ Kxe7 $18)) (15... Qxe3+ $2 16. Qxe3+ Nxe3 17. Rhe1 $18) (15... c6 $142) 16. e4 {[%emt 0:05:07]} ({White should play} 16. Qxb7 $16 O-O 17. Rhe1) 16... O-O-O $1 $11 {[%emt 0:02:27]} 17. Rd2 {[%emt 0:01:25]} Rde8 {[%emt 0:05:48]} 18. Kb1 {[%emt 0:06:13]} Rhg8 {[%emt 0:03:32]} 19. b4 {[%emt 0:09:29][%cal Oc4c5]} Kb8 {[%emt 0:01:47]} 20. Ba3 {[%emt 0:04:20]} g5 {[%emt 0:03:06]} 21. b5 {[%emt 0:03:11]} gxf4 {[%emt 0:00:13]} 22. gxf4 {[%emt 0:02:28]} axb5 {[%emt 0:00:39]} (22... Bc5 {looks sharper.} 23. Bxc5 dxc5 24. Nde2 axb5 25. cxb5 c6) 23. Ndxb5 {[%emt 0:01:46]} (23. cxb5 $15 Qd8 24. Bb3) 23... Be3 {[%emt 0:02:49]} ({Black should try} 23... Ne3 $17 24. Bd3 Bxb5 25. cxb5 Qd7) 24. Rxd6 {[%emt 0:01:23]} Bxb5 $17 {[%emt 0:00:19]} 25. Nxb5 {[%emt 0:01:05]} Nxe4 {[%emt 0:00:47]} 26. Bxe4 $2 {[%emt 0:11:53] This move loses the game for White.} Qxe4+ $19 {[%emt 0:00:59]} 27. Qxe4 {[%emt 0:00:05]} Rxe4 {[%emt 0:00:02]} 28. Rd7 {[%emt 0:00:06]} Bxf4 {[%emt 0:02:15]} 29. c5 {[%emt 0:01:17]} (29. Rxf7 Be5 30. Rf3) 29... f5 {[%emt 0:00:50]} 30. Rhd1 {[%emt 0:01:04] [#] Rd8+ would kill now.} Ree8 {[%emt 0:00:25] Inhibits Rd8+.} 31. R1d3 {[%emt 0:00:05]} (31. Bb2 $142 Nf2 32. Rf1) 31... Ne5 {[%emt 0:00:23]} ({Stronger than} 31... Re1+ 32. Kc2 Ne3+ 33. Kb3 $17) 32. Nxc7 {[%emt 0:00:40]} Rc8 {[%emt 0:01:01]} 33. Ne6 {[%emt 0:01:04]} Nxd7 {[%emt 0:00:30]} 34. Nxf4 {[%emt 0:00:29]} Nxc5 35. Rxh3 {[%emt 0:00:12]} Na4 {[%emt 0:01:01] ( -> ...Rg1+)} 36. Ne2 {[%emt 0:00:02] Prevents Rg1+.} (36. Rg3) 36... Rg6 {[%emt 0:00:25]} 37. Re3 {[%emt 0:00:34]} (37. Rh4 $142 Nc5 38. Kc2) 37... Rb6+ {[%emt 0:00:17]} 38. Ka1 {[%emt 0:00:11]} Rd8 {[%emt 0:00:45] Inhibits Nd4. And now ...Rd1+ would win.} 39. Bc1 {[%emt 0:01:46]} Rd1 {[%emt 0:00:28]} 40. h4 {[%emt 0:00:00]} f4 {[%emt 0:00:00] Black mates.} 41. Rh3 {[%emt 0:00:00]} Re1 {[%emt 0:00:00]} 42. h5 {[%emt 0:00:00]} Rxe2 {[%emt 0:00:00] Weighted Error Value: White=0.92/Black=0.30} 0-1

[Event "2nd Bieszczady Chess-ch A 2022"]
[Site "Bystre"]
[Date "2022.07.21"]
[Round "5.2"]
[White "Marszalek, Maciej"]
[Black "Tymrakiewicz, Rafal"]
[Result "1/2-1/2"]
[ECO "A53"]
[WhiteElo "2268"]
[BlackElo "2205"]
[Annotator "TA"]
[PlyCount "41"]
[EventDate "2022.07.17"]
[EventCountry "POL"]
[SourceTitle "playchess.com"]
[Source "ChessBase"]
[SourceQuality "1"]
[TimeControl "5400+30"]

{[%evp 17,41,50,54,46,45,27,38,27,41,34,68,47,52,47,62,39,42,25,39,18,50,16,39,14,51,9]} 1. d4 {[%emt 0:00:03]} Nf6 {[%emt 0:08:55]} 2. c4 {[%emt 0:03:15]} d6 {[%emt 0:02:08]} 3. Nf3 {[%emt 0:03:41]} Nbd7 {[%emt 0:05:32]} 4. g3 {[%emt 0:01:36]} e5 {[%emt 0:00:25]} 5. Bg2 {[%emt 0:00:10]} Be7 {[%emt 0:00:46]} 6. O-O {[%emt 0:00:09]} O-O {[%emt 0:00:05]} 7. Nc3 {[%emt 0:00:04]} Re8 {[%emt 0:00:31]} 8. e4 {[%emt 0:02:13]} Bf8 {[%emt 0:03:06]} 9. Re1 {[%emt 0:00:28]} c6 {[%emt 0:04:58]} 10. h3 {[%emt 0:01:48] A55: Old Indian Defence with Nf3 and e4.} a6 {[%emt 0:02:10]} 11. a4 {[%emt 0:17:31]} a5 {[%emt 0:04:13]} 12. Be3 {[%emt 0:00:34]} Qc7 {[%emt 0:08:57]} 13. Qc2 {[%emt 0:00:44]} b6 {[%emt 0:05:50]} 14. Rad1 {[%emt 0:01:45] White is more active.} Ba6 {[%emt 0:03:42]} 15. b3 {[%emt 0:02:51]} Rac8 {[%emt 0:01:16][%cal Ob6b5] [#]} 16. Qb1 $146 {[%emt 0:04:05]} ({Predecessor:} 16. Rd2 b5 17. c5 dxc5 18. dxe5 Nxe5 19. Nxe5 Qxe5 20. f4 Qh5 21. e5 b4 22. Ne4 Nxe4 23. Bxe4 Qxh3 {0-1 (35) Plaza Reino,M (1727)-Kucharska,H (2073) Porto Carras 2018}) 16... g6 {[%emt 0:05:25]} 17. Bc1 {[%emt 0:15:14]} Rcd8 {[%emt 0:01:12]} 18. Ba3 {[%emt 0:02:54]} Bb7 {[%emt 0:02:12]} 19. Bb2 {[%emt 0:05:46]} Bg7 {[%emt 0:01:23]} 20. Qc2 {[%emt 0:00:52]} Ba8 {[%emt 0:05:11]} 21. Kh2 {[%emt 0:03:08] Weighted Error Value: White=0.15 (very precise) /Black=0.14 (very precise)} 1/2-1/2

[Event "2nd Bieszczady Chess-ch A 2022"]
[Site "Bystre"]
[Date "2022.07.21"]
[Round "5.3"]
[White "Wilk, Tomasz"]
[Black "Kyc, Jerzy"]
[Result "0-1"]
[ECO "B52"]
[WhiteElo "1900"]
[BlackElo "2203"]
[Annotator "TA"]
[PlyCount "70"]
[EventDate "2022.07.17"]
[EventCountry "POL"]
[SourceTitle "playchess.com"]
[Source "ChessBase"]
[SourceQuality "1"]
[TimeControl "5400+30"]

{[%evp 20,70,31,0,32,7,50,41,47,35,41,44,35,37,64,23,20,13,13,0,63,33,56,46,53,56,47,0,0,0,16,-29,-6,-63,-64,-56,-56,-57,-58,-58,-60,-68,-60,-117,-116,-209,-212,-444,-395,-821,-583,-29996,-29997]} 1. e4 {[%emt 0:00:01]} c5 {[%emt 0:00:49]} 2. Nf3 {[%emt 0:01:21]} d6 {[%emt 0:00:19]} 3. Bb5+ {[%emt 0:00:04]} Bd7 {[%emt 0:01:17]} 4. Bxd7+ {[%emt 0:00:07]} Qxd7 {[%emt 0:00:02]} 5. c4 {[%emt 0:00:06]} Nc6 {[%emt 0:00:59]} 6. d4 {[%emt 0:00:18]} cxd4 {[%emt 0:00:25]} 7. Nxd4 {[%emt 0:00:06]} Nf6 {[%emt 0:00:35]} 8. Nc3 {[%emt 0:00:09]} g6 {[%emt 0:00:12]} 9. f3 {[%emt 0:03:02]} Bg7 {[%emt 0:03:10]} 10. Be3 {[%emt 0:02:13]} O-O {[%emt 0:03:07]} 11. Qd2 {[%emt 0:03:47]} Rac8 {[%emt 0:01:35] B52: Sicilian: Moscow Variation with 3...Bd7.} 12. b3 {[%emt 0:01:31]} e6 {[%emt 0:02:23]} 13. Rd1 {[%emt 0:04:18] [#]} Nxd4 $146 {[%emt 0:27:36] White is slightly better.} ({Predecessor:} 13... d5 14. Nxc6 bxc6 15. e5 Ne8 16. Bc5 Bxe5 17. Bxf8 Kxf8 18. Ne2 Qc7 19. cxd5 cxd5 {½-½ (39) Nielsen,H (2338)-Nahnsen,K (1960) Helsingor 2015}) 14. Bxd4 {[%emt 0:01:19]} a6 {[%emt 0:02:06]} 15. a4 {[%emt 0:02:42] Prevents b5.} Qc7 {[%emt 0:07:27]} 16. O-O {[%emt 0:02:41]} Rfd8 {[%emt 0:04:23]} 17. Qe3 {[%emt 0:05:10] Strongly threatening Bb6.} Nd7 {[%emt 0:04:14] [#] Inhibits Bb6. ...e5 is the strong threat.} 18. Bxg7 {[%emt 0:02:09]} Kxg7 {[%emt 0:00:03]} 19. Qd4+ {[%emt 0:00:10]} Nf6 {[%emt 0:00:13]} ({Black should play} 19... Kf8 $11) 20. Rd2 {[%emt 0:04:05]} Rd7 {[%emt 0:05:14]} 21. Rfd1 {[%emt 0:05:45]} Qa5 {[%emt 0:03:12]} 22. Qe3 {[%emt 0:02:55]} Rcd8 {[%emt 0:05:40]} 23. f4 {[%emt 0:04:48]} (23. g3 $14) 23... Ng4 $11 {[%emt 0:03:06]} 24. Qd3 {[%emt 0:06:12]} ({Of course not} 24. Qd4+ e5 25. Qd3 Qb6+ 26. Kh1 Nf2+ 27. Rxf2 Qxf2 $17) 24... e5 {[%emt 0:02:46]} 25. Nd5 {[%emt 0:04:43] [#] Prevents Qb6+. Black must now prevent Qf3.} Qc5+ {[%emt 0:00:11]} 26. Kh1 {[%emt 0:00:04]} (26. Kf1 $1 $11 Nxh2+ 27. Ke2) 26... Nf2+ $15 {[%emt 0:00:56]} 27. Rxf2 $1 {[%emt 0:00:04]} Qxf2 {[%emt 0:00:04]} 28. f5 {[%emt 0:00:30]} gxf5 {[%emt 0:06:46]} 29. exf5 {[%emt 0:03:08]} f6 {[%emt 0:04:56]} 30. Rf1 {[%emt 0:01:08]} Qh4 {[%emt 0:00:04]} 31. Nb6 {[%emt 0:04:37]} (31. h3 $15) 31... Rf7 $17 {[%emt 0:00:56][%cal Bd7f7,Bf7g7,Bg7g2][%mdl 32]} 32. h3 {[%emt 0:00:37]} (32. Nd5 $17) 32... Kh8 $19 {[%emt 0:00:35]} 33. Rd1 $2 {[%emt 0:03:01]} (33. Kh2) 33... Rg7 {[%emt 0:01:50]} 34. c5 $2 {[%emt 0:00:14]} (34. Qc2) 34... Rdg8 {[%emt 0:01:09]} 35. cxd6 {[%emt 0:01:11]} Rxg2 {[%emt 0:00:35] Weighted Error Value: White=0.81/Black=0.21 (precise)} 0-1

[Event "2nd Bieszczady Chess-ch A 2022"]
[Site "Bystre"]
[Date "2022.07.21"]
[Round "5.4"]
[White "Karvatskyi, Oleksii"]
[Black "Babiarz, Arkadiusz"]
[Result "1-0"]
[ECO "B20"]
[WhiteElo "1804"]
[BlackElo "2027"]
[Annotator "TA"]
[PlyCount "55"]
[EventDate "2022.07.17"]
[EventCountry "POL"]
[SourceTitle "playchess.com"]
[Source "ChessBase"]
[SourceQuality "1"]
[TimeControl "5400+30"]

{[%evp 9,55,-20,-21,-35,-27,-91,-100,-107,-79,-124,0,0,0,0,-4,-18,23,-2,11,-18,90,81,128,132,135,129,137,123,162,-68,-67,-55,-42,-60,97,0,105,77,82,84,93,0,0,0,28,14,861,837]} 1. e4 {[%emt 0:00:02] ChessBase II} c5 {[%emt 0:00:05]} 2. b3 {[%emt 0:00:02]} g6 {[%emt 0:00:07]} 3. Bb2 {[%emt 0:00:04]} Nf6 {[%emt 0:00:04]} 4. h4 {[%emt 0:00:36]} Bg7 {[%emt 0:00:16]} 5. e5 {[%emt 0:00:34]} Nd5 {[%emt 0:00:05][%cal Bf6d5,Bd5b6,Bb6c4][%mdl 32]} 6. Bc4 {[%emt 0:06:51] [#] B20: Sicilian: Unusual White 2nd moves.} Nb6 $146 {[%emt 0:01:47]} ({Predecessor:} 6... Nc7 7. h5 Nc6 8. f4 O-O 9. hxg6 hxg6 10. Qg4 Ne6 11. Bxe6 dxe6 12. Nc3 Nd4 {1-0 (31) Das,A (2404)-Barbot,P (1917) Sautron 2008 EXT 2009 [ChessBase II]}) 7. h5 {[%emt 0:03:25]} (7. Qc1 $11) 7... Nxc4 $17 {[%emt 0:00:56]} 8. bxc4 {[%emt 0:00:12] Black is better.} Nc6 {[%emt 0:00:39]} 9. f4 {[%emt 0:11:32]} d6 {[%emt 0:01:04]} (9... O-O $1 $17 {White must now prevent ...d6.} 10. d3 d6) 10. h6 $11 {[%emt 0:00:32]} Bf8 {[%emt 0:00:33]} 11. exd6 {[%emt 0:04:42]} Rg8 {[%emt 0:00:04]} 12. dxe7 {[%emt 0:00:30]} Bxe7 {[%emt 0:00:19]} 13. Nc3 {[%emt 0:04:22]} Be6 {[%emt 0:03:42]} 14. Nf3 {[%emt 0:07:32] Inhibits Qd4.} Qc7 {[%emt 0:01:48]} (14... Qb6 $11 {remains equal.} 15. Rb1 Bxc4) 15. Nd5 $16 {[%emt 0:01:10]} Bxd5 {[%emt 0:01:26]} (15... Qd8 $142) 16. cxd5 {[%emt 0:00:08]} Nb4 {[%emt 0:00:59]} 17. Be5 {[%emt 0:01:02]} Qd7 {[%emt 0:00:25]} 18. c4 {[%emt 0:00:51]} f6 {[%emt 0:01:25] [#]} 19. Bc3 $2 {[%emt 0:07:34]} (19. O-O $1 $18) 19... Nd3+ $15 {[%emt 0:00:05]} 20. Kf1 {[%emt 0:00:03] Threatens to win with Qe2.} Nxf4 {[%emt 0:00:42]} 21. d4 {[%emt 0:02:12]} Kf7 $2 {[%emt 0:07:39]} ({But not} 21... Qg4 22. Qc2 $16) (21... O-O-O $1 $15 {keeps the upper hand.}) 22. Qd2 {[%emt 0:01:15]} (22. g3 $16 Nh5 23. Kg2) 22... Nh5 {[%emt 0:02:37]} (22... Qa4 $2 23. Qxf4 Qxc4+ 24. Kg1 Qxd5 25. Rh3 $18) (22... Qf5 $1 $11) 23. Qf2 $36 {[%emt 0:01:12][%mdl 2048] White has strong initiative.} Qf5 {[%emt 0:01:38] Against Ne5+} 24. Rd1 {[%emt 0:04:48] g4 is the strong threat.} Bd6 {[%emt 0:05:26] [#] aiming for ...Ng3+.} 25. dxc5 {[%emt 0:13:06]} (25. Rxh5 $1 $16 Qxh5 26. dxc5) 25... Ng3+ $11 {[%emt 0:01:26]} 26. Kg1 {[%emt 0:00:06]} Ne4 {[%emt 0:02:59]} 27. Qb2 {[%emt 0:00:24]} Nxc3 $4 {[%emt 0:07:48][%mdl 8192] [#]} (27... Bxc5+ $11 28. Bd4 b6) 28. cxd6 $1 {[%emt 0:00:33] Weighted Error Value: White=0.38/Black=0.50} 1-0